bitfinex-derivatives/quotes_BTCF0:USTF0_20251130
["timestamp","ask_amount","ask_price","bid_price","bid_amount"]
[1764516977916,0.5041281,91433.0,91432.0,0.06103427]
[1764516978516,0.5041281,91433.0,91432.0,0.07390427]
[1764516982215,0.7241281,91433.0,91432.0,0.07390427]
[1764516985417,0.3633281,91433.0,91432.0,0.07390427]
[1764516985620,0.7241281,91433.0,91432.0,0.07390427]
[1764516990120,0.7241281,91433.0,91432.0,0.01674427]
[1764516990724,0.7241281,91433.0,91432.0,0.03983427]
[1764516993829,0.7241281,91433.0,91432.0,0.01674427]
[1764516995838,0.7241281,91433.0,91432.0,0.03983427]
[1764516996826,0.7241281,91433.0,91432.0,0.06102427]
[1764516999426,0.74898782,91433.0,91432.0,0.06102427]
[1764517006435,0.46805012,91433.0,91432.0,0.06102427]
[1764517006732,0.4231904,91433.0,91432.0,0.06102427]
[1764517009733,0.4631904,91433.0,91432.0,0.06102427]
[1764517010034,0.5831904,91433.0,91432.0,0.06102427]
[1764517010932,0.5831904,91433.0,91432.0,0.03983427]
[1764517011533,0.5831904,91433.0,91432.0,0.06186427]
[1764517012533,0.5831904,91433.0,91432.0,0.03983427]
[1764517012834,0.8331904,91433.0,91432.0,0.01674427]
[1764517016933,0.85802289,91433.0,91432.0,0.01674427]
[1764517018644,0.86402289,91433.0,91432.0,0.01574427]
[1764517018839,0.04426,91424.0,91423.0,0.04526]
[1764517019040,0.8423804,91424.0,91423.0,9e-05]
[1764517019341,0.8423804,91424.0,91423.0,0.02323]
[1764517019648,0.8423804,91424.0,91423.0,0.04526]
[1764517020036,0.8430892,91424.0,91423.0,0.04526]
[1764517020240,0.8430892,91424.0,91423.0,9e-05]
[1764517020550,0.8430892,91424.0,91423.0,0.0614144]
[1764517021044,0.84309674,91424.0,91423.0,0.0614144]
[1764517021447,0.84709674,91424.0,91423.0,0.0614144]
[1764517021949,0.84809674,91424.0,91423.0,0.0614144]
[1764517026343,0.81405794,91424.0,91423.0,0.0614144]
[1764517026653,0.38289794,91424.0,91423.0,0.0614144]
[1764517027040,0.42715794,91424.0,91423.0,0.0614144]
[1764517030452,0.42715724,91424.0,91423.0,0.0614144]
[1764517036954,0.43809604,91424.0,91423.0,0.0614144]
[1764517037657,0.07729604,91424.0,91423.0,0.0614144]
[1764517037852,0.06635724,91424.0,91423.0,0.0614144]
[1764517038951,0.04325724,91424.0,91423.0,0.0614144]
[1764517039157,0.005,91424.0,91423.0,0.14002873]
[1764517039559,0.02819,91424.0,91423.0,0.14002873]
[1764517040057,0.01109,91456.0,91455.0,0.0553251]
[1764517040058,0.02319,91456.0,91455.0,0.0553251]
[1764517040246,0.4161541,91463.0,91462.0,0.04439]
[1764517040451,0.43324681,91463.0,91462.0,0.04439]
[1764517041056,0.4161541,91463.0,91462.0,0.04439]
[1764517042469,0.40522,91463.0,91462.0,0.04439]
[1764517042668,0.3608,91463.0,91462.0,0.04439]
[1764517043280,0.3628,91463.0,91462.0,0.04439]
[1764517043569,0.40579,91463.0,91462.0,0.04439]
[1764517044369,0.002,91463.0,91462.0,0.04439]
[1764517044671,0.01311,91484.0,91483.0,0.0570617]
[1764517044672,0.38222,91484.0,91483.0,0.0570617]
[1764517044859,0.40379,91484.0,91483.0,0.0570617]
[1764517045465,0.40379,91484.0,91483.0,0.02307]
[1764517046059,0.40379,91484.0,91483.0,0.04613]
[1764517046268,0.44379,91484.0,91483.0,0.04613]
[1764517046475,0.40379,91484.0,91483.0,0.04613]
[1764517046774,0.40979,91484.0,91483.0,0.04813]
[1764517051177,0.60979,91484.0,91483.0,0.002]
[1764517052878,0.60979,91484.0,91483.0,0.02507]
[1764517053765,0.60979,91484.0,91483.0,0.002]
[1764517054782,0.76979,91484.0,91483.0,0.002]
[1764517055285,0.7807216,91484.0,91483.0,0.002]
[1764517055885,0.7807216,91484.0,91483.0,0.02507]
[1764517057083,0.7807216,91484.0,91483.0,0.002]
[1764517059387,0.4199216,91484.0,91483.0,0.002]
[1764517059586,0.7807216,91484.0,91483.0,0.002]
[1764517061789,0.76979,91484.0,91483.0,0.02507]
[1764517061976,0.76979,91484.0,91483.0,0.002]
[1764517063678,0.40979,91484.0,91483.0,0.04833]
[1764517063888,0.44979,91484.0,91483.0,0.04833]
[1764517064883,0.40979,91484.0,91483.0,0.04833]
[1764517066777,0.49979,91484.0,91483.0,0.04833]
[1764517067882,0.40979,91484.0,91483.0,0.04833]
[1764517068982,0.49979,91484.0,91483.0,0.04833]
[1764517069378,0.79979,91484.0,91483.0,0.002]
[1764517074184,0.81687649,91484.0,91483.0,0.002]
[1764517074390,0.84179339,91484.0,91483.0,0.002]
[1764517076590,0.84179339,91484.0,91483.0,0.02407]
[1764517076793,0.84179339,91484.0,91483.0,0.002]
[1764517077688,0.84179403,91484.0,91483.0,0.002]
[1764517088192,0.82470754,91484.0,91483.0,0.002]
[1764517088898,0.82470754,91484.0,91474.0,0.00016396]
[1764517088899,0.0551827,91475.0,91474.0,0.00016396]
[1764517089094,0.8559827,91475.0,91474.0,0.00016396]
[1764517090899,0.8559827,91475.0,91474.0,0.00216396]
[1764517091087,0.8589827,91475.0,91474.0,0.00216396]
[1764517103410,0.0534448,91457.0,91456.0,0.04366]
[1764517104008,0.1734448,91457.0,91456.0,0.04366]
[1764517105001,0.1754448,91457.0,91456.0,0.04766]
[1764517106416,0.1734448,91457.0,91456.0,0.04366]
[1764517106711,0.1744448,91457.0,91456.0,0.04566]
[1764517107306,0.1744448,91457.0,91456.0,0.02375]
[1764517107603,0.1744448,91457.0,91456.0,0.04566]
[1764517117220,0.4444448,91457.0,91456.0,0.04566]
[1764517119120,0.43351,91457.0,91456.0,0.05832]
[1764517120423,0.4444448,91457.0,91456.0,0.05832]
[1764517120924,0.43351,91457.0,91456.0,0.05832]
[1764517124430,0.391,91457.0,91456.0,0.05832]
[1764517125123,0.001,91457.0,91456.0,0.05832]
[1764517127030,0.001,91457.0,91456.0,0.41912]
[1764517132634,0.001,91457.0,91456.0,0.05832]
[1764517132834,0.001,91457.0,91456.0,0.41912]
[1764517133234,0.00016396,91466.0,91465.0,0.0556839]
[1764517133429,0.3608,91489.0,91485.0,0.0556815]
[1764517133629,0.3608,91489.0,91485.0,0.2279215]
[1764517134132,0.02206327,91486.0,91485.0,0.31569978]
[1764517134333,0.04384327,91486.0,91485.0,0.31569978]
[1764517135233,0.05484327,91486.0,91485.0,0.31669978]
[1764517136133,0.04484327,91486.0,91485.0,0.2279215]
[1764517136335,0.05284327,91486.0,91485.0,0.2289215]
[1764517138938,0.06377467,91486.0,91485.0,0.2289215]
[1764517139127,0.06377467,91486.0,91485.0,0.13426265]
[1764517139327,0.19377467,91486.0,91485.0,0.21795]
[1764517140340,0.19377467,91486.0,91485.0,0.001]
[1764517140925,0.37377467,91486.0,91485.0,0.001]
[1764517141131,0.0545024,91477.0,91476.0,0.00016396]
[1764517141434,0.5453024,91477.0,91476.0,0.00016396]
[1764517142532,0.5503024,91477.0,91476.0,0.00116396]
[1764517142737,0.5503024,91477.0,91476.0,0.02366396]
[1764517143037,0.40937,91477.0,91476.0,0.04591396]
[1764517143226,0.3658,91477.0,91476.0,0.04591396]
[1764517143431,0.44937,91477.0,91476.0,0.04591396]
[1764517144638,0.40937,91477.0,91476.0,0.04591396]
[1764517147342,0.005,91477.0,91476.0,0.04591396]
[1764517151048,0.04857,91477.0,91476.0,0.04591396]
[1764517152032,0.02679,91477.0,91476.0,0.04591396]
[1764517153850,0.02679,91477.0,91476.0,0.21815396]
[1764517154349,0.02679,91477.0,91476.0,0.29667153]
[1764517154546,0.04857,91477.0,91476.0,0.29667153]
[1764517155044,0.04857,91477.0,91476.0,0.21815396]
[1764517158849,0.04857,91477.0,91476.0,0.21811396]
[1764517159052,0.18857,91477.0,91476.0,0.21811396]
[1764517159253,0.04857,91477.0,91476.0,0.21811396]
[1764517159448,0.04857,91477.0,91476.0,0.04591396]
[1764517159649,0.18857,91477.0,91476.0,0.04591396]
[1764517160049,0.18857,91477.0,91476.0,0.12443153]
[1764517160651,0.18857,91477.0,91476.0,0.04591396]
[1764517163756,0.54937,91477.0,91476.0,0.04591396]
[1764517167552,0.5058,91477.0,91476.0,0.04591396]
[1764517167858,0.005,91477.0,91476.0,0.04591396]
[1764517169359,0.04417327,91486.0,91485.0,0.0675215]
[1764517169759,0.02153327,91486.0,91485.0,0.0675215]
[1764517170150,0.04417327,91486.0,91485.0,0.0675215]
[1764517170551,0.00127327,91486.0,91485.0,0.0685215]
[1764517170855,0.01027327,91486.0,91485.0,0.0685215]
[1764517171160,0.01027327,91486.0,91485.0,0.16627956]
[1764517171360,0.01027327,91486.0,91485.0,0.0685215]
[1764517171555,0.00927327,91486.0,91485.0,0.0695215]
[1764517172549,0.00227327,91486.0,91485.0,0.0735215]
[1764517173156,0.00227327,91486.0,91485.0,0.0775215]
[1764517174258,0.00227327,91486.0,91485.0,0.17569113]
[1764517174467,0.00227327,91486.0,91485.0,0.34793113]
[1764517175860,0.00227327,91486.0,91485.0,0.17569113]
[1764517176168,0.04617327,91486.0,91485.0,0.2497215]
[1764517176365,0.04617327,91486.0,91485.0,0.0775215]
[1764517176569,0.04617327,91486.0,91485.0,0.2497215]
[1764517180761,0.00227327,91486.0,91485.0,0.2497215]
[1764517181569,0.04617327,91486.0,91485.0,0.2497215]
[1764517183265,0.04617327,91486.0,91485.0,0.0775215]
[1764517183573,0.04617327,91486.0,91485.0,0.2497215]
[1764517183963,0.04617327,91486.0,91485.0,0.0775215]
[1764517184174,0.04617327,91486.0,91485.0,0.2370615]
[1764517184873,0.04617327,91486.0,91485.0,0.03252]
[1764517185068,0.04617327,91486.0,91485.0,0.20472]
[1764517185272,0.04617327,91486.0,91485.0,0.22634]
[1764517187473,0.04617327,91486.0,91485.0,0.05414]
[1764517193177,0.04617327,91486.0,91485.0,0.0650715]
[1764517194776,0.04617327,91486.0,91485.0,0.05414]
[1764517200963,0.04617327,91486.0,91485.0,0.01]
[1764517200964,0.48617327,91486.0,91485.0,0.01]
[1764517202171,0.04302,91477.0,91476.0,0.04336396]
[1764517202479,0.83382,91477.0,91476.0,0.04336396]
[1764517203578,0.8447524,91477.0,91476.0,0.04336396]
[1764517204379,0.8457524,91477.0,91476.0,0.04736396]
[1764517205675,0.8447524,91477.0,91476.0,0.04336396]
[1764517205870,0.8457524,91477.0,91476.0,0.04736396]
[1764517208781,0.4157524,91477.0,91476.0,0.04736396]
[1764517210080,0.3618,91477.0,91476.0,0.07107646]
[1764517210380,0.38303,91477.0,91476.0,0.07107646]
[1764517210579,0.40482,91477.0,91476.0,0.07107646]
[1764517212380,0.44482,91477.0,91476.0,0.07107646]
[1764517214175,0.44482,91477.0,91476.0,0.06014396]
[1764517214176,0.4557524,91477.0,91476.0,0.06014396]
[1764517214780,0.44482,91477.0,91476.0,0.06014396]
[1764517215587,0.44482,91477.0,91476.0,0.04878396]
[1764517218987,0.44482,91477.0,91476.0,0.05971646]
[1764517219981,0.40482,91477.0,91476.0,0.05971646]
[1764517220192,0.4157524,91477.0,91476.0,0.04878396]
[1764517220589,0.4557524,91477.0,91476.0,0.04878396]
[1764517223292,0.0949524,91477.0,91476.0,0.04878396]
[1764517223590,0.4557524,91477.0,91476.0,0.04878396]
[1764517227493,0.4557524,91477.0,91476.0,0.02608396]
[1764517228486,0.4557524,91477.0,91476.0,0.04846396]
[1764517230786,0.4557524,91477.0,91476.0,0.00416396]
[1764517231294,0.0949524,91477.0,91476.0,0.00416396]
[1764517231488,0.4557524,91477.0,91476.0,0.00416396]
[1764517231994,0.7757524,91477.0,91476.0,0.00416396]
[1764517233594,0.5357524,91477.0,91476.0,0.02540396]
[1764517233993,0.5357524,91477.0,91476.0,0.00416396]
[1764517234393,0.5357524,91477.0,91476.0,0.02540396]
[1764517234695,0.5357524,91477.0,91476.0,0.04778396]
[1764517234998,0.5357524,91477.0,91476.0,0.06072396]
[1764517235401,0.5357524,91477.0,91476.0,0.04778396]
[1764517239894,0.5357524,91477.0,91476.0,0.00416396]
[1764517240394,0.8457524,91477.0,91476.0,0.00416396]
[1764517240696,0.8457524,91477.0,91473.0,0.07847344]
[1764517240697,0.0553228,91474.0,91473.0,0.07847344]
[1764517240895,0.0553231,91471.0,91470.0,0.07847344]
[1764517241298,0.0553231,91471.0,91470.0,0.09971344]
[1764517241506,0.0553231,91471.0,91470.0,0.12209344]
[1764517243300,0.0553231,91471.0,91470.0,0.04362]
[1764517243498,0.4161231,91471.0,91470.0,0.04362]
[1764517243705,0.4181231,91471.0,91470.0,0.005]
[1764517244102,0.04551,91470.0,91469.0,0.07847344]
[1764517244497,0.04551,91470.0,91469.0,0.12293344]
[1764517246202,0.04751,91470.0,91469.0,0.12593344]
[1764517246705,0.04551,91470.0,91469.0,0.12293344]
[1764517246905,0.04751,91470.0,91469.0,0.12593344]
[1764517247308,0.04551,91470.0,91469.0,0.12293344]
[1764517247497,0.04751,91470.0,91469.0,0.04746]
[1764517248903,0.04551,91470.0,91469.0,0.04446]
[1764517249103,0.04751,91470.0,91469.0,0.04746]
[1764517249410,0.40831,91470.0,91469.0,0.04746]
[1764517249603,0.40831,91470.0,91469.0,0.04646]
[1764517250311,0.40831,91470.0,91469.0,0.002]
[1764517250901,0.83831,91470.0,91469.0,0.002]
[1764517259509,0.41831,91470.0,91469.0,0.02429]
[1764517259810,0.41831,91470.0,91469.0,0.04646]
[1764517260009,0.77911,91470.0,91469.0,0.04646]
[1764517262318,1.08911,91470.0,91469.0,0.04646]
[1764517262820,0.84911,91470.0,91469.0,0.04646]
[1764517266312,1.16911,91470.0,91469.0,0.002]
[1764517267426,0.90911,91470.0,91469.0,0.02429]
[1764517267821,1.11911,91470.0,91469.0,0.02429]
[1764517269925,1.11911,91470.0,91469.0,0.002]
[1764517270922,1.11911,91470.0,91469.0,0.001164]
[1764517273728,0.79911,91470.0,91469.0,0.001164]
[1764517274126,0.79911,91470.0,91469.0,0.022294]
[1764517274431,0.79911,91470.0,91469.0,0.045354]
[1764517278433,0.82416706,91470.0,91469.0,0.045354]
[1764517279828,0.82416706,91470.0,91469.0,0.022294]
[1764517280032,1.07416706,91470.0,91469.0,0.001164]
[1764517283335,1.07430422,91470.0,91469.0,0.001164]
[1764517287631,1.07430422,91470.0,91469.0,4e-06]
[1764517307162,1.08605422,91470.0,91469.0,4e-06]
[1764517309363,0.36445422,91470.0,91469.0,4e-06]
[1764517309663,1.08605422,91470.0,91469.0,4e-06]
[1764517322872,1.08605422,91470.0,91469.0,0.022524]
[1764517323177,1.07430422,91470.0,91469.0,0.044794]
[1764517326377,1.04911,91470.0,91469.0,0.044794]
[1764517331470,1.01573,91470.0,91469.0,4e-06]
[1764517331669,1.04093488,91470.0,91469.0,4e-06]
[1764517331875,1.15999202,91470.0,91469.0,4e-06]
[1764517339986,0.43839202,91470.0,91469.0,4e-06]
[1764517340187,1.15999202,91470.0,91469.0,4e-06]
[1764517340881,1.16107123,91470.0,91469.0,4e-06]
[1764517341283,1.16149803,91470.0,91469.0,4e-06]
[1764517362802,1.03031089,91470.0,91469.0,0.046004]
[1764517364200,1.02880488,91470.0,91469.0,0.046004]
[1764517364399,1.03080758,91470.0,91469.0,0.046004]
[1764517368508,0.7256027,91470.0,91469.0,0.046004]
[1764517368701,0.3648027,91470.0,91469.0,0.446004]
[1764517369206,0.3648027,91470.0,91469.0,0.52461544]
[1764517369507,0.3648027,91470.0,91469.0,0.446004]
[1764517370206,0.419536,91470.0,91469.0,0.046004]
[1764517374018,0.459536,91470.0,91469.0,0.046004]
[1764517378602,0.098736,91470.0,91469.0,0.046004]
[1764517378902,0.45966355,91470.0,91469.0,0.046004]
[1764517379505,0.09886355,91470.0,91469.0,0.046004]
[1764517379709,0.45966355,91470.0,91469.0,0.046004]
[1764517380500,0.41586355,91470.0,91469.0,4e-06]
[1764517380809,0.82586355,91470.0,91469.0,4e-06]
[1764517386516,0.41966355,91470.0,91469.0,0.042894]
[1764517387513,0.45966355,91470.0,91469.0,0.042894]
[1764517390908,0.42799355,91470.0,91469.0,4e-06]
[1764517391115,0.76799355,91470.0,91469.0,4e-06]
[1764517403021,1.12879355,91470.0,91469.0,4e-06]
[1764517404421,0.40719355,91470.0,91469.0,4e-06]
[1764517404624,1.12879355,91470.0,91469.0,4e-06]
[1764517408229,1.15387236,91470.0,91469.0,4e-06]
[1764517414335,1.12879355,91470.0,91469.0,4e-06]
[1764517414835,1.15387907,91470.0,91469.0,4e-06]
[1764517420040,1.14174907,91470.0,91469.0,4e-06]
[1764517424443,0.90174907,91470.0,91469.0,4e-06]
[1764517425242,1.18174907,91470.0,91469.0,4e-06]
[1764517426557,0.36493025,91470.0,91469.0,0.043414]
[1764517427128,0.36493025,91470.0,91469.0,0.14158363]
[1764517427331,0.36493025,91470.0,91469.0,0.043414]
[1764517428831,0.40599,91484.0,91483.0,0.04341]
[1764517429036,0.02241327,91486.0,91485.0,0.04341]
[1764517429542,0.04546327,91486.0,91485.0,0.04341]
[1764517430946,0.05146327,91486.0,91485.0,0.04341]
[1764517432151,0.04946327,91486.0,91485.0,0.04441]
[1764517440447,0.12946327,91486.0,91485.0,0.023]
[1764517440645,0.42946327,91486.0,91485.0,0.001]
[1764517447963,0.04519,91465.0,91464.0,0.0672439]
[1764517448148,0.40599,91465.0,91464.0,0.0672439]
[1764517449255,0.40599,91465.0,91464.0,0.04441]
[1764517449456,0.40599,91465.0,91464.0,0.04741]
[1764517449457,0.44799,91465.0,91464.0,0.04741]
[1764517450249,0.4589239,91465.0,91464.0,0.04741]
[1764517450851,0.4589239,91465.0,91464.0,0.04641]
[1764517451057,0.4589239,91465.0,91464.0,0.04541]
[1764517451257,0.4589239,91465.0,91464.0,0.04641]
[1764517451958,0.4589239,91465.0,91464.0,0.04541]
[1764517453855,0.4589239,91465.0,91464.0,0.002]
[1764517454059,0.4189239,91465.0,91464.0,0.002]
[1764517454258,0.8389239,91465.0,91464.0,0.002]
[1764517454955,0.8389239,91465.0,91464.0,0.02409]
[1764517455261,0.8389239,91465.0,91464.0,0.04573]
[1764517460664,0.8389239,91465.0,91464.0,0.002]
[1764517460854,0.8389239,91465.0,91446.0,0.16789605]
[1764517460855,0.0428,91451.0,91450.0,0.0546656]
[1764517461050,0.4036,91451.0,91450.0,0.0546656]
[1764517461964,0.4036,91451.0,91450.0,0.0556656]
[1764517463558,0.4056,91451.0,91450.0,0.0556656]
[1764517463765,0.3628,91451.0,91450.0,0.0556656]
[1764517463960,0.3608,91451.0,91450.0,0.0556656]
[1764517464165,0.3628,91451.0,91450.0,0.0556656]
[1764517464466,0.38454,91451.0,91450.0,0.0556656]
[1764517464659,0.38254,91451.0,91450.0,0.0546656]
[1764517464864,0.38454,91451.0,91450.0,0.0556656]
[1764517465661,0.3628,91451.0,91450.0,0.0556656]
[1764517467263,0.3608,91465.0,91464.0,0.063934]
[1764517467264,0.4164539,91465.0,91464.0,0.063934]
[1764517467466,0.4764539,91465.0,91464.0,0.063934]
[1764517467872,0.46552,91465.0,91464.0,0.063934]
[1764517468668,0.46752,91465.0,91464.0,0.063934]
[1764517469661,0.4228,91465.0,91464.0,0.063934]
[1764517469862,0.36096396,91474.0,91473.0,0.0535929]
[1764517470664,0.40568396,91474.0,91473.0,0.0535929]
[1764517471362,0.40768396,91474.0,91473.0,0.0545929]
[1764517474172,0.04688396,91474.0,91473.0,0.0545929]
[1764517480276,0.04688396,91474.0,91473.0,0.13300273]
[1764517480863,0.04688396,91474.0,91473.0,0.12206983]
[1764517481072,0.40768396,91474.0,91473.0,0.21582]
[1764517481577,0.40768396,91474.0,91473.0,0.04366]
[1764517481781,0.40768396,91474.0,91473.0,0.21582]
[1764517490881,0.48768396,91474.0,91473.0,0.001]
[1764517491186,0.48768396,91474.0,91473.0,0.21668]
[1764517496394,0.00216396,91474.0,91473.0,0.21668]
[1764517496787,0.02478396,91474.0,91473.0,0.21668]
[1764517497192,0.04770396,91474.0,91473.0,0.21668]
[1764517498392,0.04770396,91474.0,91473.0,0.17316]
[1764517498595,0.08770396,91474.0,91473.0,0.001]
[1764517498791,0.04770396,91474.0,91473.0,0.001]
[1764517498983,0.20770396,91474.0,91473.0,0.001]
[1764517500283,0.20770396,91474.0,91473.0,0.04452]
[1764517500485,0.08770396,91474.0,91473.0,0.04452]
[1764517500702,0.08770396,91474.0,91473.0,0.02268]
[1764517501688,0.35770396,91474.0,91473.0,0.02268]
[1764517503093,0.08770396,91474.0,91473.0,0.04452]
[1764517505592,0.44850396,91474.0,91473.0,0.04452]
[1764517507305,0.40850396,91474.0,91473.0,0.04452]
[1764517507506,0.44850396,91474.0,91473.0,0.04452]
[1764517507701,0.40850396,91474.0,91473.0,0.04452]
[1764517509111,0.3608,91482.0,91481.0,0.054452]
[1764517509298,0.3608,91482.0,91481.0,0.15262163]
[1764517509495,0.31548629,91482.0,91481.0,0.15262163]
[1764517509707,0.00027327,91486.0,91485.0,0.0671915]
[1764517510700,0.04581327,91486.0,91485.0,0.0544515]
[1764517510905,0.13581327,91486.0,91485.0,0.09818636]
[1764517511102,0.04554,91479.0,91478.0,0.0544523]
[1764517511299,0.04554,91479.0,91478.0,0.2266923]
[1764517512601,0.04754,91479.0,91478.0,0.2306923]
[1764517514004,0.04754,91479.0,91478.0,0.21976]
[1764517515108,0.02844,91479.0,91478.0,0.21976]
[1764517515713,0.02844,91479.0,91478.0,0.29832636]
[1764517518000,0.002,91479.0,91478.0,0.21976]
[1764517519310,0.002,91479.0,91478.0,0.34156]
[1764517520012,0.00027327,91486.0,91485.0,0.05537]
[1764517521011,0.00027327,91486.0,91485.0,0.0663015]
[1764517522012,0.3608,91505.0,91485.0,0.0663015]
[1764517522013,0.3608,91505.0,91494.0,0.0536104]
[1764517522214,0.3608,91505.0,91494.0,0.2258104]
[1764517523114,0.00316396,91495.0,91494.0,0.2278104]
[1764517523520,0.00016396,91495.0,91494.0,0.2268104]
[1764517523712,0.00216396,91495.0,91494.0,0.2388104]
[1764517524312,0.3608,91505.0,91504.0,0.0557992]
[1764517525114,0.40473,91505.0,91504.0,0.0557992]
[1764517525316,0.40473,91505.0,91504.0,0.0567992]
[1764517525709,0.40673,91505.0,91504.0,0.0657992]
[1764517527421,0.40673,91505.0,91504.0,0.2379992]
[1764517533710,0.3628,91505.0,91504.0,0.2379992]
[1764517533917,0.002,91505.0,91504.0,0.31640191]
[1764517534317,0.04593,91505.0,91504.0,0.14420191]
[1764517534525,0.04593,91505.0,91504.0,0.31640191]
[1764517534821,0.002,91505.0,91504.0,0.31640191]
[1764517537021,0.40673,91505.0,91504.0,0.0657992]
[1764517537227,0.40673,91505.0,91504.0,0.2379992]
[1764517537724,0.04593,91505.0,91504.0,0.2379992]
[1764517538732,0.22593,91505.0,91504.0,0.01]
[1764517538914,0.04593,91505.0,91504.0,0.1931292]
[1764517539218,0.04593,91505.0,91504.0,0.2150692]
[1764517539419,0.04593,91505.0,91504.0,0.2379992]
[1764517540809,0.04593,91505.0,91504.0,0.0657992]
[1764517541427,0.04593,91505.0,91504.0,0.05487]
[1764517542319,0.04593,91505.0,91504.0,0.01]
[1764517542625,0.04593,91505.0,91485.0,0.3608]
[1764517542626,0.04393,91465.0,91464.0,0.05868]
[1764517543817,0.04393,91465.0,91464.0,0.05968]
[1764517544027,0.13593,91465.0,91464.0,0.05187]
[1764517544420,0.13393,91465.0,91464.0,0.04487]
[1764517544624,0.13593,91465.0,91464.0,0.04887]
[1764517545022,0.13393,91465.0,91464.0,0.04487]
[1764517545327,0.13493,91465.0,91464.0,0.04887]
[1764517545730,0.04493,91465.0,91464.0,0.04887]
[1764517546227,0.07493,91465.0,91464.0,0.04887]
[1764517546640,0.07393,91465.0,91464.0,0.04487]
[1764517546818,0.07393,91465.0,91464.0,0.04987]
[1764517546819,0.07593,91465.0,91464.0,0.04987]
[1764517547018,0.43673,91465.0,91464.0,0.04987]
[1764517547220,0.43473,91465.0,91464.0,0.04487]
[1764517547421,0.43673,91465.0,91464.0,0.04987]
[1764517548831,0.43673,91465.0,91464.0,0.005]
[1764517549227,0.43673,91465.0,91464.0,0.02692]
[1764517549821,0.43673,91465.0,91464.0,0.04821]
[1764517550030,0.43673,91465.0,91464.0,0.04321]
[1764517550428,0.43673,91465.0,91464.0,0.05593]
[1764517551533,0.43673,91465.0,91464.0,0.02192]
[1764517552732,0.43473,91465.0,91464.0,0.02192]
[1764517552921,0.43673,91465.0,91464.0,0.02192]
[1764517554139,0.04484,91461.0,91460.0,0.21549]
[1764517554333,0.16484,91461.0,91460.0,0.21549]
[1764517556334,0.16684,91461.0,91460.0,0.21549]
[1764517557632,0.1777743,91461.0,91460.0,0.21549]
[1764517557833,0.0557749,91456.0,91455.0,0.02208396]
[1764517558039,0.1857749,91456.0,91455.0,0.04337396]
[1764517558426,0.1857749,91456.0,91455.0,0.05609396]
[1764517559229,0.1877749,91456.0,91455.0,0.05609396]
[1764517560436,0.0577749,91456.0,91455.0,0.05609396]
[1764517560931,0.04684,91456.0,91455.0,0.05609396]
[1764517562741,0.04484,91456.0,91455.0,0.05609396]
[1764517563043,0.04684,91456.0,91455.0,0.05609396]
[1764517563934,0.04484,91456.0,91455.0,0.05609396]
[1764517564136,0.04684,91456.0,91455.0,0.05609396]
[1764517565426,0.04484,91456.0,91455.0,0.05609396]
[1764517565626,0.04684,91456.0,91455.0,0.05609396]
[1764517566024,0.04484,91456.0,91455.0,0.05609396]
[1764517566224,0.04684,91456.0,91455.0,0.05609396]
[1764517566940,0.04684,91456.0,91455.0,0.05709396]
[1764517569131,0.002,91456.0,91455.0,0.05709396]
[1764517569530,0.40564,91464.0,91463.0,0.04321]
[1764517569734,0.46564,91464.0,91463.0,0.04321]
[1764517569931,0.36096396,91474.0,91473.0,0.0541429]
[1764517570329,0.00016396,91474.0,91473.0,0.0541429]
[1764517571440,0.00016396,91474.0,91473.0,0.13235835]
[1764517572342,0.00016396,91474.0,91473.0,0.0551429]
[1764517572544,0.04500396,91474.0,91473.0,0.0551429]
[1764517573038,0.00016396,91474.0,91473.0,0.0551429]
[1764517573241,0.00199999,91474.0,91473.0,0.0551429]
[1764517573841,0.40498,91483.0,91482.0,0.0678218]
[1764517575949,0.40698,91483.0,91482.0,0.0678218]
[1764517576238,0.40698,91483.0,91482.0,0.0688218]
[1764517576847,0.40498,91483.0,91482.0,0.0688218]
[1764517577040,0.40698,91483.0,91482.0,0.0688218]
[1764517577638,0.04618,91483.0,91482.0,0.0688218]
[1764517579041,0.40698,91483.0,91482.0,0.05789]
[1764517581149,0.40698,91483.0,91482.0,0.04449]
[1764517582038,0.40698,91483.0,91482.0,0.04349]
[1764517582242,0.40698,91483.0,91482.0,0.04449]
[1764517582843,0.40698,91483.0,91482.0,0.04349]
[1764517583043,0.40498,91483.0,91482.0,0.04449]
[1764517583246,0.40698,91483.0,91482.0,0.04449]
[1764517598262,0.40698,91483.0,91482.0,0.12303244]
[1764517599257,0.40698,91483.0,91482.0,0.001]
[1764517599466,0.44698,91483.0,91482.0,0.001]
[1764517600049,0.44698,91483.0,91482.0,0.04562]
[1764517601673,0.3628,91483.0,91482.0,0.04562]
[1764517602666,0.00016396,91492.0,91491.0,0.04462]
[1764517602865,0.38261,91499.0,91498.0,0.0555499]
[1764517603170,0.38261,91499.0,91498.0,0.2278699]
[1764517603678,0.3608,91499.0,91498.0,0.2278699]
[1764517603975,0.40543,91507.0,91506.0,0.055069]
[1764517605868,0.40743,91507.0,91506.0,0.057069]
[1764517606069,0.40743,91507.0,91506.0,0.13555531]
[1764517606268,0.40743,91507.0,91506.0,0.057069]
[1764517606469,0.40743,91507.0,91506.0,0.059069]
[1764517607080,0.40743,91507.0,91506.0,0.058069]
[1764517607280,0.40743,91507.0,91506.0,0.059069]
[1764517607873,0.45743,91507.0,91506.0,0.059069]
[1764517608181,0.40743,91507.0,91506.0,0.059069]
[1764517608769,0.40543,91507.0,91506.0,0.056069]
[1764517608977,0.40743,91507.0,91506.0,0.059069]
[1764517609376,0.40543,91507.0,91506.0,0.056069]
[1764517609677,0.40743,91507.0,91506.0,0.059069]
[1764517609872,0.40743,91507.0,91506.0,0.058069]
[1764517610078,0.40743,91507.0,91506.0,0.059069]
[1764517612182,0.38507,91507.0,91506.0,0.231349]
[1764517612369,0.40743,91507.0,91506.0,0.231349]
[1764517612576,0.40743,91507.0,91506.0,0.230349]
[1764517612869,0.40743,91507.0,91506.0,0.231349]
[1764517616286,0.04663,91507.0,91506.0,0.231349]
[1764517623190,0.02427,91507.0,91506.0,0.231349]
[1764517623384,0.04663,91507.0,91506.0,0.231349]
[1764517626283,0.04663,91507.0,91506.0,0.30983531]
[1764517627197,0.04663,91507.0,91506.0,0.231349]
[1764517630581,0.12663,91507.0,91506.0,0.059069]